Workbook

Sheet Taul1
D1: MIKKELIN AVANTOUIMARIT RY VUOSI 2018
C2: LAAJALAMPI | F2: ORIJÄRVI | H2: PANKALA | J2: RITVALA | K2: 2018 | L2: OTAVA
C3: UINNIT | D3: UIJAT | E3: UINNIT | F3: UIJAT | G3: UINNIT | H3: UIJAT | I3: UINNIT | J3: UIJAT | K3: UINNIT | L3: UIJAT
A4: TAMMI | B4: N | C4: 575 | D4: 35 | E4: 308 | F4: 25 | G4: 2202 | H4: 216 | I4: 512 | J4: 45
B5: M | C5: 74 | D5: 5 | E5: 145 | F5: 13 | G5: 567 | H5: 57 | I5: 67 | J5: 9
A6: HELMI | B6: N | C6: 401 | D6: 30 | E6: 252 | F6: 24 | G6: 1497 | H6: 180 | I6: 343 | J6: 34
B7: M | C7: 27 | D7: 5 | E7: 100 | F7: 13 | G7: 433 | H7: 46 | I7: 42 | J7: 8
A8: MAALIS | B8: N | C8: 401 | D8: 30 | E8: 298 | F8: 26 | G8: 1718 | H8: 167 | I8: 434 | J8: 36
B9: M | C9: 27 | D9: 5 | E9: 98 | F9: 13 | G9: 450 | H9: 48 | I9: 45 | J9: 6
A10: HUHTI | B10: N | C10: 535 | D10: 38 | E10: 286 | F10: 26 | G10: 1158 | H10: 167 | I10: 514 | J10: 44 | K10: 106 | L10: 13
B11: M | C11: 49 | D11: 4 | E11: 75 | F11: 13 | G11: 393 | H11: 42 | I11: 52 | J11: 6 | K11: 11 | L11: 6
A12: TOUKO | B12: N | C12: 535 | D12: 38 | E12: 58 | F12: 14 | G12: 1568 | H12: 168 | I12: 359 | J12: 40 | K12: 118 | L12: 11
B13: M | C13: 49 | D13: 4 | E13: 16 | F13: 3 | G13: 331 | H13: 41 | I13: 78 | J13: 5 | K13: 17 | L13: 2
A14: KESÄ | B14: N | G14: 1148 | H14: 124 | K14: =SUM(K10:K13) -> 252 | L14: =SUM(L10:L13) -> 32 | M14: yhteensä
B15: M | G15: 287 | H15: 28 | M15: Otava
A16: HEINÄ | B16: N | G16: 1412 | H16: 152
B17: M | G17: 337 | H17: 34
A18: ELO | B18: N | G18: 1300 | H18: 153
B19: M | G19: 259 | H19: 28
A20: SYYS | B20: N | C20: 235 | D20: 25 | E20: 54 | F20: 14 | G20: 1462 | H20: 155
B21: M | C21: 10 | D21: 2 | E21: 17 | F21: 3 | G21: 270 | H21: 35
A22: LOKA | B22: N | C22: 478 | D22: 31 | E22: 157 | F22: 24 | G22: 1746 | H22: 174 | I22: 495 | J22: 49 | L22: VUOSI 2018
B23: M | C23: 54 | D23: 3 | E23: 75 | F23: 10 | G23: 483 | H23: 43 | I23: 137 | J23: 14
A24: MARRAS | B24: N | C24: 578 | D24: 39 | E24: 290 | F24: 32 | G24: 1789 | H24: 175 | I24: 489 | J24: 45 | L24: YHTEENSÄ
B25: m | C25: 38 | D25: 5 | E25: 92 | F25: 12 | G25: 441 | H25: 47 | I25: 134 | J25: 12
A26: JOULU | B26: N | C26: 549 | D26: 37 | E26: 288 | F26: 35 | G26: 1771 | H26: 185 | I26: 513 | J26: 40 | K26: UINNIT | M26: UIJAT
B27: m | C27: 71 | D27: 6 | E27: 104 | F27: 10 | G27: 407 | H27: 43 | I27: 106 | J27: 15
A28: YHTEENSÄ | B28: 2018 | C28: =SUM(C4:C27) -> 4686 | D28: =SUM(D4:D27) -> 342 | E28: 2713 | F28: 310 | G28: 23429 | H28: 2508 | I28: 4320 | J28: 408 | K28: =C28+E28+G28+I28+K14 -> 35400 | M28: =D28+F28+H28+J28+L4+L14 -> 3600
A29: YHTEENSÄ | B29: 2017 | C29: 5180 | D29: 334 | E29: 2440 | F29: 298 | G29: 21630 | H29: 2306 | I29: 5255 | J29: 465 | K29: =C29+E29+G29+I29+K4 -> 34505 | M29: =D29+F29+H29+J29+L4 -> 3403
A30: EROTUS | C30: =C28-C29 -> -494 | D30: =D28-D29 -> 8 | E30: 273 | F30: 12 | G30: 1799 | H30: 202 | I30: -935 | J30: -57 | K30: =K28-K29 -> 895 | M30: =M28-M29 -> 197
